[Event "*** Titled Tuesday Blitz"]
[Site "Chess.com"]
[Date "2020.11.03"]
[Round "4"]
[White "MF1966Idrisov"]
[Black "PawnEatingZombie"]
[Result "1-0"]
[WhiteElo "2342"]
[BlackElo "2160"]
[TimeControl "180+1"]
[EndTime "10:40:55 PST"]
[Termination "MF1966Idrisov won by resignation"]

1. Nf3 {[%clk 0:03:00.9]} 1... d5 {[%clk 0:02:59.6]} 2. b3 {[%clk 0:03:01.1]}
2... Nf6 {[%clk 0:02:58.5]} 3. Bb2 {[%clk 0:03:01.2]} 3... e6 {[%clk 0:02:59.1]}
4. e3 {[%clk 0:03:01.5]} 4... Bd6 {[%clk 0:02:59.6]} 5. d4 {[%clk 0:03:02]} 5...
b6 {[%clk 0:02:59.2]} 6. Bd3 {[%clk 0:03:02.5]} 6... Bb7 {[%clk 0:02:59.2]} 7.
Nbd2 {[%clk 0:03:03.2]} 7... Qe7 {[%clk 0:02:58.1]} 8. O-O {[%clk 0:03:01.8]}
8... O-O {[%clk 0:02:56.6]} 9. Ne5 {[%clk 0:03:01.3]} 9... Nbd7 {[%clk
0:02:50.5]} 10. a3 {[%clk 0:02:55.4]} 10... Ne4 {[%clk 0:02:40.4]} 11. Nxd7
{[%clk 0:02:46]} 11... Qxd7 {[%clk 0:02:39.9]} 12. Nxe4 {[%clk 0:02:45.7]} 12...
dxe4 {[%clk 0:02:39.6]} 13. Be2 {[%clk 0:02:45.8]} 13... f5 {[%clk 0:02:36.4]}
14. g3 {[%clk 0:02:44.8]} 14... Rad8 {[%clk 0:02:29.1]} 15. c4 {[%clk
0:02:38.4]} 15... Qe7 {[%clk 0:02:28.4]} 16. Qc2 {[%clk 0:02:35.3]} 16... c5
{[%clk 0:02:26.5]} 17. dxc5 {[%clk 0:02:30.5]} 17... bxc5 {[%clk 0:02:23.7]} 18.
Qc3 {[%clk 0:02:25.5]} 18... Qg5 {[%clk 0:02:08]} 19. b4 {[%clk 0:02:19.1]}
19... Be7 {[%clk 0:02:02.4]} 20. Qb3 {[%clk 0:02:14.7]} 20... f4 {[%clk
0:01:52.6]} 21. exf4 {[%clk 0:02:10]} 21... Qg6 {[%clk 0:01:15.8]} 22. Qe3
{[%clk 0:01:59.2]} 22... Bd6 {[%clk 0:01:07.1]} 23. Be5 {[%clk 0:01:50.4]} 23...
Bxe5 {[%clk 0:00:57.3]} 24. fxe5 {[%clk 0:01:50.2]} 24... Qf5 {[%clk 0:00:31.7]}
25. Qxc5 {[%clk 0:01:25.1]} 25... Rd2 {[%clk 0:00:31.5]} 26. Rae1 {[%clk
0:01:24.4]} 26... Rfd8 {[%clk 0:00:24.4]} 27. a4 {[%clk 0:01:22.4]} 27... e3
{[%clk 0:00:21]} 28. Qxe3 {[%clk 0:01:20.1]} 28... Qc2 {[%clk 0:00:18.5]} 29.
Bg4 {[%clk 0:01:11.9]} 29... R2d3 {[%clk 0:00:12.5]} 30. Bxe6+ {[%clk
0:01:08.9]} 30... Kh8 {[%clk 0:00:12.8]} 31. Qg5 {[%clk 0:01:08.7]} 31... R3d4
{[%clk 0:00:07.1]} 32. Bd5 {[%clk 0:01:02.3]} 32... Rf8 {[%clk 0:00:04.6]} 33.
Bxb7 {[%clk 0:01:01]} 1-0

[Event "*** Titled Tuesday Blitz"]
[Site "Chess.com"]
[Date "2020.11.03"]
[Round "4"]
[White "natelleka"]
[Black "niki_2003"]
[Result "0-1"]
[WhiteElo "2223"]
[BlackElo "1928"]
[TimeControl "180+1"]
[EndTime "10:40:59 PST"]
[Termination "niki_2003 won on time"]

1. e4 {[%clk 0:03:00.9]} 1... c5 {[%clk 0:03:00.3]} 2. Nf3 {[%clk 0:03:00.8]}
2... d6 {[%clk 0:03:00.8]} 3. d4 {[%clk 0:03:01.3]} 3... cxd4 {[%clk 0:03:01.4]}
4. Nxd4 {[%clk 0:03:01.9]} 4... Nf6 {[%clk 0:03:02.1]} 5. Nc3 {[%clk 0:03:02.4]}
5... g6 {[%clk 0:03:02.8]} 6. Be2 {[%clk 0:03:01.3]} 6... Bg7 {[%clk 0:03:03.4]}
7. O-O {[%clk 0:03:01.3]} 7... O-O {[%clk 0:03:01.1]} 8. Bg5 {[%clk 0:03:00.9]}
8... Nc6 {[%clk 0:03:01.1]} 9. Nb3 {[%clk 0:02:59.9]} 9... a6 {[%clk 0:02:57.3]}
10. Re1 {[%clk 0:02:55.6]} 10... b5 {[%clk 0:02:56.7]} 11. a3 {[%clk 0:02:46.8]}
11... Bb7 {[%clk 0:02:51.7]} 12. Bf1 {[%clk 0:02:46.6]} 12... Ne5 {[%clk
0:02:50]} 13. Nd4 {[%clk 0:02:32.7]} 13... Rc8 {[%clk 0:02:48.7]} 14. Qe2 {[%clk
0:02:13.3]} 14... Nc4 {[%clk 0:02:36]} 15. b3 {[%clk 0:01:30.1]} 15... Nxa3
{[%clk 0:02:28.4]} 16. Qd2 {[%clk 0:01:20.7]} 16... b4 {[%clk 0:02:21.9]} 17.
Nd5 {[%clk 0:00:50.5]} 17... Bxd5 {[%clk 0:02:16.6]} 18. exd5 {[%clk 0:00:50.4]}
18... Nxd5 {[%clk 0:02:16.6]} 19. Bxa6 {[%clk 0:00:23.8]} 19... Rc7 {[%clk
0:01:51.3]} 20. Nf3 {[%clk 0:00:06.3]} 20... Bxa1 {[%clk 0:01:28.1]} 21. Qxd5
{[%clk 0:00:05.6]} 21... Bg7 {[%clk 0:01:24.1]} 22. Qe4 {[%clk 0:00:04.4]} 22...
f6 {[%clk 0:01:14.3]} 23. Bd2 {[%clk 0:00:04.3]} 23... d5 {[%clk 0:01:04]} 24.
Qe6+ {[%clk 0:00:03.5]} 24... Kh8 {[%clk 0:01:03.2]} 25. Bxb4 {[%clk 0:00:04]}
25... Nxc2 {[%clk 0:00:54.3]} 26. Bxe7 {[%clk 0:00:02]} 26... Rxe7 {[%clk
0:00:52.4]} 27. Qxe7 {[%clk 0:00:02.1]} 27... Nxe1 {[%clk 0:00:53]} 0-1

[Event "*** Titled Tuesday Blitz"]
[Site "Chess.com"]
[Date "2020.11.03"]
[Round "4"]
[White "Manukyan_Artak"]
[Black "Chess2019Player"]
[Result "1-0"]
[WhiteElo "2436"]
[BlackElo "2247"]
[TimeControl "180+1"]
[EndTime "10:41:04 PST"]
[Termination "Manukyan_Artak won on time"]

1. e4 {[%clk 0:02:49.1]} 1... c5 {[%clk 0:02:56.9]} 2. Nf3 {[%clk 0:02:48.8]}
2... g6 {[%clk 0:02:50.1]} 3. c3 {[%clk 0:02:49]} 3... Bg7 {[%clk 0:02:46]} 4.
d4 {[%clk 0:02:48.5]} 4... cxd4 {[%clk 0:02:46.4]} 5. cxd4 {[%clk 0:02:49.4]}
5... d5 {[%clk 0:02:46.5]} 6. exd5 {[%clk 0:02:50.3]} 6... Nf6 {[%clk
0:02:25.3]} 7. Bb5+ {[%clk 0:02:19.5]} 7... Nbd7 {[%clk 0:02:15.5]} 8. Nc3
{[%clk 0:02:18.9]} 8... O-O {[%clk 0:02:14.7]} 9. Bxd7 {[%clk 0:02:19]} 9...
Bxd7 {[%clk 0:02:04.2]} 10. Qb3 {[%clk 0:02:17.1]} 10... b6 {[%clk 0:01:17.3]}
11. O-O {[%clk 0:02:15.5]} 11... Bc8 {[%clk 0:01:16.2]} 12. Ne5 {[%clk
0:02:11.4]} 12... Bb7 {[%clk 0:01:15.5]} 13. Nc6 {[%clk 0:02:10.9]} 13... Qd7
{[%clk 0:01:13]} 14. Ne5 {[%clk 0:02:03.6]} 14... Qd8 {[%clk 0:00:50.5]} 15. Nc6
{[%clk 0:02:00.5]} 15... Bxc6 {[%clk 0:00:49.9]} 16. dxc6 {[%clk 0:02:00.1]}
16... Qxd4 {[%clk 0:00:50.6]} 17. Bg5 {[%clk 0:01:57]} 17... Rac8 {[%clk
0:00:42.2]} 18. Nb5 {[%clk 0:01:51.3]} 18... Qc5 {[%clk 0:00:18.4]} 19. Bxf6
{[%clk 0:01:46.5]} 19... Bxf6 {[%clk 0:00:19.3]} 20. Rac1 {[%clk 0:01:45.3]}
20... Qe5 {[%clk 0:00:19.1]} 21. Nxa7 {[%clk 0:01:43.4]} 21... Ra8 {[%clk
0:00:17.4]} 22. c7 {[%clk 0:01:32.1]} 22... Rxa7 {[%clk 0:00:14.8]} 23. c8=Q
{[%clk 0:01:32]} 23... Rxc8 {[%clk 0:00:15]} 24. Rxc8+ {[%clk 0:01:32.7]} 24...
Kg7 {[%clk 0:00:15.9]} 25. Rc2 {[%clk 0:01:28.4]} 25... Qa5 {[%clk 0:00:11.8]}
26. a3 {[%clk 0:01:25.7]} 26... Rd7 {[%clk 0:00:12.1]} 27. Rc6 {[%clk
0:01:19.7]} 27... Rd2 {[%clk 0:00:02.8]} 28. Qxb6 {[%clk 0:01:15.4]} 28... Qe5
{[%clk 0:00:02.1]} 29. b4 {[%clk 0:01:08.2]} 29... Qb2 {[%clk 0:00:02]} 30. Qe3
{[%clk 0:01:02.2]} 30... Bd4 {[%clk 0:00:02]} 31. Qf3 {[%clk 0:00:56.4]} 1-0

[Event "*** Titled Tuesday Blitz"]
[Site "Chess.com"]
[Date "2020.11.03"]
[Round "4"]
[White "DrVelja"]
[Black "WeAintSurePal"]
[Result "1-0"]
[WhiteElo "2758"]
[BlackElo "2355"]
[TimeControl "180+1"]
[EndTime "10:41:05 PST"]
[Termination "DrVelja won by resignation"]

1. d4 {[%clk 0:03:00.8]} 1... Nf6 {[%clk 0:02:58.5]} 2. c4 {[%clk 0:03:00.7]}
2... e6 {[%clk 0:02:58.6]} 3. Nf3 {[%clk 0:03:00]} 3... Bb4+ {[%clk 0:02:58.9]}
4. Bd2 {[%clk 0:02:51.3]} 4... c5 {[%clk 0:02:58.8]} 5. g3 {[%clk 0:02:46.4]}
5... O-O {[%clk 0:02:52.8]} 6. Bxb4 {[%clk 0:02:46.2]} 6... cxb4 {[%clk
0:02:52.7]} 7. Bg2 {[%clk 0:02:46.1]} 7... d6 {[%clk 0:02:53.2]} 8. O-O {[%clk
0:02:44.9]} 8... Nc6 {[%clk 0:02:53.5]} 9. Nbd2 {[%clk 0:02:45.2]} 9... e5
{[%clk 0:02:52.8]} 10. d5 {[%clk 0:02:40.7]} 10... Nb8 {[%clk 0:02:52]} 11. a3
{[%clk 0:02:39]} 11... bxa3 {[%clk 0:02:48.2]} 12. Rxa3 {[%clk 0:02:39.9]} 12...
a5 {[%clk 0:02:47.1]} 13. c5 {[%clk 0:02:34.4]} 13... h6 {[%clk 0:02:34.5]} 14.
Nc4 {[%clk 0:02:20.6]} 14... e4 {[%clk 0:02:31.6]} 15. Nd4 {[%clk 0:02:08.8]}
15... dxc5 {[%clk 0:02:30.8]} 16. Nb5 {[%clk 0:02:08.9]} 16... Bd7 {[%clk
0:02:19]} 17. Nbd6 {[%clk 0:02:05.7]} 17... b5 {[%clk 0:02:16.8]} 18. Ne5 {[%clk
0:02:06.3]} 18... b4 {[%clk 0:02:15.7]} 19. Re3 {[%clk 0:02:04.9]} 19... Qe7
{[%clk 0:01:52.8]} 20. Nxd7 {[%clk 0:01:56]} 20... Qxd7 {[%clk 0:01:49.2]} 21.
Nxe4 {[%clk 0:01:55.6]} 21... Nxe4 {[%clk 0:01:49.3]} 22. Rxe4 {[%clk
0:01:54.4]} 22... Qd6 {[%clk 0:01:43]} 23. Rc4 {[%clk 0:01:50.3]} 23... Nd7
{[%clk 0:01:41.9]} 24. e4 {[%clk 0:01:50.9]} 24... Rfe8 {[%clk 0:01:41.8]} 25.
f4 {[%clk 0:01:50.9]} 25... f6 {[%clk 0:01:41.8]} 26. Qd2 {[%clk 0:01:49.3]}
26... Re7 {[%clk 0:01:41.3]} 27. Rfc1 {[%clk 0:01:47.9]} 27... Rae8 {[%clk
0:01:40.5]} 28. b3 {[%clk 0:01:46.7]} 28... Kh8 {[%clk 0:01:11.2]} 29. Qd3
{[%clk 0:01:42.9]} 29... Qa6 {[%clk 0:00:54.3]} 30. Qd2 {[%clk 0:01:34.5]} 30...
Qd6 {[%clk 0:00:51.3]} 31. Qf2 {[%clk 0:01:33.2]} 31... Qb6 {[%clk 0:00:35.1]}
32. Bh3 {[%clk 0:01:31]} 32... Qd6 {[%clk 0:00:34.5]} 33. Be6 {[%clk 0:01:30.2]}
33... Rxe6 {[%clk 0:00:33.8]} 34. dxe6 {[%clk 0:01:29.7]} 34... Rxe6 {[%clk
0:00:34.2]} 35. Qe2 {[%clk 0:01:27.6]} 35... Qe7 {[%clk 0:00:31.6]} 36. Qd3
{[%clk 0:01:25.5]} 36... Nb6 {[%clk 0:00:26.7]} 37. Rxc5 {[%clk 0:01:22.6]}
37... Rxe4 {[%clk 0:00:27]} 38. Rc7 {[%clk 0:01:21.1]} 38... Re1+ {[%clk
0:00:25.7]} 39. Kf2 {[%clk 0:01:19.2]} 39... Rd1 {[%clk 0:00:10.6]} 40. Qxd1
{[%clk 0:01:17.6]} 1-0

[Event "*** Titled Tuesday Blitz"]
[Site "Chess.com"]
[Date "2020.11.03"]
[Round "4"]
[White "lelajavakhishvili"]
[Black "Smirnov_Pavel"]
[Result "0-1"]
[WhiteElo "2535"]
[BlackElo "2840"]
[TimeControl "180+1"]
[EndTime "10:41:07 PST"]
[Termination "Smirnov_Pavel won by resignation"]

1. d4 {[%clk 0:03:00.9]} 1... Nf6 {[%clk 0:03:00.1]} 2. c4 {[%clk 0:03:00.8]}
2... e6 {[%clk 0:03:01]} 3. Nf3 {[%clk 0:03:00.9]} 3... d5 {[%clk 0:03:01.2]} 4.
Nc3 {[%clk 0:03:00.2]} 4... c6 {[%clk 0:03:01.4]} 5. e3 {[%clk 0:02:57.6]} 5...
Nbd7 {[%clk 0:03:00.7]} 6. Qc2 {[%clk 0:02:57.5]} 6... Bd6 {[%clk 0:03:00.8]} 7.
b3 {[%clk 0:02:57.4]} 7... O-O {[%clk 0:03:01.4]} 8. Be2 {[%clk 0:02:54.9]} 8...
b6 {[%clk 0:03:01.8]} 9. O-O {[%clk 0:02:54.6]} 9... Bb7 {[%clk 0:03:02.4]} 10.
Bb2 {[%clk 0:02:55.4]} 10... Qe7 {[%clk 0:03:02.8]} 11. Rfe1 {[%clk 0:02:55.2]}
11... Rfe8 {[%clk 0:03:02.3]} 12. Rad1 {[%clk 0:02:54.7]} 12... Rad8 {[%clk
0:03:01.9]} 13. Bd3 {[%clk 0:02:54.7]} 13... e5 {[%clk 0:02:56.9]} 14. cxd5
{[%clk 0:02:31.8]} 14... cxd5 {[%clk 0:02:49.8]} 15. dxe5 {[%clk 0:02:30.8]}
15... Nxe5 {[%clk 0:02:50.5]} 16. Be2 {[%clk 0:02:19.2]} 16... Nxf3+ {[%clk
0:02:39.3]} 17. Bxf3 {[%clk 0:02:18.8]} 17... d4 {[%clk 0:02:39.5]} 18. Nb5
{[%clk 0:01:42.2]} 18... Bxf3 {[%clk 0:02:35.6]} 19. gxf3 {[%clk 0:01:43.1]}
19... Bxh2+ {[%clk 0:01:32]} 20. Kxh2 {[%clk 0:01:27.2]} 20... Qe5+ {[%clk
0:01:31.8]} 21. Kg1 {[%clk 0:01:27.4]} 21... Qg5+ {[%clk 0:01:28.4]} 22. Kh1
{[%clk 0:01:10.2]} 22... Qh5+ {[%clk 0:00:40.5]} 23. Kg2 {[%clk 0:00:57.9]}
23... d3 {[%clk 0:00:37.7]} 24. Qc4 {[%clk 0:00:49]} 24... Rd5 {[%clk
0:00:33.4]} 25. Bxf6 {[%clk 0:00:45.5]} 25... gxf6 {[%clk 0:00:32]} 26. Rxd3
{[%clk 0:00:25.4]} 26... Qg6+ {[%clk 0:00:25.4]} 27. Kh2 {[%clk 0:00:22.9]}
27... Rh5+ {[%clk 0:00:24.6]} 0-1

[Event "*** Titled Tuesday Blitz"]
[Site "Chess.com"]
[Date "2020.11.03"]
[Round "4"]
[White "Skat2704"]
[Black "levallem"]
[Result "1-0"]
[WhiteElo "2429"]
[BlackElo "2236"]
[TimeControl "180+1"]
[EndTime "10:41:07 PST"]
[Termination "Skat2704 won by resignation"]

1. d4 {[%clk 0:02:59.7]} 1... Nf6 {[%clk 0:02:58.8]} 2. c4 {[%clk 0:02:59.5]}
2... e6 {[%clk 0:02:59.3]} 3. Nf3 {[%clk 0:02:58.9]} 3... Bb4+ {[%clk
0:02:57.7]} 4. Bd2 {[%clk 0:02:58.7]} 4... Bxd2+ {[%clk 0:02:57.7]} 5. Qxd2
{[%clk 0:02:58.2]} 5... d5 {[%clk 0:02:57]} 6. g3 {[%clk 0:02:56.7]} 6... b6
{[%clk 0:02:56.6]} 7. Bg2 {[%clk 0:02:56.7]} 7... Bb7 {[%clk 0:02:57.1]} 8. O-O
{[%clk 0:02:56.9]} 8... Nbd7 {[%clk 0:02:57]} 9. Ne5 {[%clk 0:02:56.2]} 9... O-O
{[%clk 0:02:54.4]} 10. Nc3 {[%clk 0:02:55.9]} 10... c6 {[%clk 0:02:28.5]} 11.
Rad1 {[%clk 0:02:53.9]} 11... Nxe5 {[%clk 0:02:27.8]} 12. dxe5 {[%clk
0:02:53.7]} 12... Nd7 {[%clk 0:02:28.3]} 13. f4 {[%clk 0:02:46.2]} 13... Qe7
{[%clk 0:02:27.8]} 14. e4 {[%clk 0:02:41.5]} 14... Qc5+ {[%clk 0:02:26.2]} 15.
Kh1 {[%clk 0:02:41.3]} 15... Qxc4 {[%clk 0:02:26.2]} 16. f5 {[%clk 0:02:32.5]}
16... Nxe5 {[%clk 0:02:21.2]} 17. f6 {[%clk 0:02:32.6]} 17... Ng6 {[%clk
0:01:46.9]} 18. fxg7 {[%clk 0:02:24.7]} 18... Kxg7 {[%clk 0:01:47.8]} 19. h4
{[%clk 0:02:24.1]} 19... h5 {[%clk 0:01:45]} 20. Qg5 {[%clk 0:02:20.4]} 20... c5
{[%clk 0:01:29.3]} 21. Qf6+ {[%clk 0:02:05.7]} 21... Kg8 {[%clk 0:01:24.6]} 22.
exd5 {[%clk 0:02:01.5]} 22... exd5 {[%clk 0:01:21.7]} 23. Bxd5 {[%clk
0:01:53.4]} 23... Bxd5+ {[%clk 0:01:20.7]} 24. Nxd5 {[%clk 0:01:53.2]} 24...
Rad8 {[%clk 0:01:18.7]} 25. Qg5 {[%clk 0:01:51.4]} 25... Kg7 {[%clk 0:00:52.2]}
26. Nf6 {[%clk 0:01:41.9]} 26... Rxd1 {[%clk 0:00:45.6]} 27. Rxd1 {[%clk
0:01:40.6]} 27... Qe2 {[%clk 0:00:28.1]} 28. Nxh5+ {[%clk 0:01:32.9]} 28... Kh7
{[%clk 0:00:21.3]} 29. Nf6+ {[%clk 0:01:29.7]} 29... Kg7 {[%clk 0:00:20.5]} 30.
Nh5+ {[%clk 0:01:13.9]} 30... Kh7 {[%clk 0:00:20.1]} 31. Rd2 {[%clk 0:01:06.8]}
31... Qf1+ {[%clk 0:00:17.3]} 32. Kh2 {[%clk 0:01:06.2]} 32... Qf3 {[%clk
0:00:09.9]} 33. Rg2 {[%clk 0:01:00]} 33... Re8 {[%clk 0:00:06.7]} 34. Nf6+
{[%clk 0:00:58.4]} 34... Kg7 {[%clk 0:00:05.9]} 35. Nxe8+ {[%clk 0:00:58.3]} 1-0

[Event "*** Titled Tuesday Blitz"]
[Site "Chess.com"]
[Date "2020.11.03"]
[Round "4"]
[White "Kezin_Roman"]
[Black "Kavyev_Ruslan"]
[Result "1-0"]
[WhiteElo "2726"]
[BlackElo "2506"]
[TimeControl "180+1"]
[EndTime "10:41:13 PST"]
[Termination "Kezin_Roman won by resignation"]

1. e4 {[%clk 0:02:59]} 1... c5 {[%clk 0:03:00]} 2. Nf3 {[%clk 0:02:56.1]} 2...
d6 {[%clk 0:03:00.1]} 3. Bb5+ {[%clk 0:02:54.2]} 3... Nd7 {[%clk 0:02:59.9]} 4.
Ba4 {[%clk 0:02:54]} 4... Nf6 {[%clk 0:02:59]} 5. O-O {[%clk 0:02:53.9]} 5... a6
{[%clk 0:02:59.6]} 6. c4 {[%clk 0:02:53]} 6... e6 {[%clk 0:02:58.7]} 7. Nc3
{[%clk 0:02:52.1]} 7... Be7 {[%clk 0:02:59]} 8. d4 {[%clk 0:02:52.6]} 8... cxd4
{[%clk 0:02:58.9]} 9. Nxd4 {[%clk 0:02:53.5]} 9... O-O {[%clk 0:02:58.8]} 10.
Re1 {[%clk 0:02:48.3]} 10... Qc7 {[%clk 0:02:58.7]} 11. Qe2 {[%clk 0:02:45.2]}
11... b6 {[%clk 0:02:58.4]} 12. Nc6 {[%clk 0:02:41.2]} 12... Nc5 {[%clk
0:02:51.1]} 13. Nxe7+ {[%clk 0:02:39]} 13... Qxe7 {[%clk 0:02:52]} 14. Bc2
{[%clk 0:02:39.9]} 14... Bb7 {[%clk 0:02:51.1]} 15. f3 {[%clk 0:02:38.9]} 15...
Rac8 {[%clk 0:02:43.2]} 16. Bg5 {[%clk 0:02:38.2]} 16... h6 {[%clk 0:02:39.8]}
17. Bh4 {[%clk 0:02:38.1]} 17... Ncd7 {[%clk 0:01:55.6]} 18. Rad1 {[%clk
0:02:36.1]} 18... Ne5 {[%clk 0:01:45.1]} 19. Bb3 {[%clk 0:02:16.6]} 19... Ng6
{[%clk 0:01:43.3]} 20. Bg3 {[%clk 0:02:15.5]} 20... Rfd8 {[%clk 0:01:41.5]} 21.
Qe3 {[%clk 0:02:14.4]} 21... Qc7 {[%clk 0:01:33.1]} 22. Bf2 {[%clk 0:02:02.3]}
22... Nd7 {[%clk 0:01:29.1]} 23. f4 {[%clk 0:01:51.8]} 23... Nc5 {[%clk
0:00:58.3]} 24. Bc2 {[%clk 0:01:51.6]} 24... Nd7 {[%clk 0:00:55.9]} 25. Bd3
{[%clk 0:01:51.4]} 25... Nc5 {[%clk 0:00:55.4]} 26. Bf1 {[%clk 0:01:49.6]} 26...
Re8 {[%clk 0:00:51.5]} 27. Rd2 {[%clk 0:01:47.5]} 27... d5 {[%clk 0:00:46]} 28.
cxd5 {[%clk 0:01:43.7]} 28... exd5 {[%clk 0:00:44]} 29. e5 {[%clk 0:01:44.2]}
29... Ne4 {[%clk 0:00:42.7]} 30. Nxe4 {[%clk 0:01:40.3]} 30... dxe4 {[%clk
0:00:43.6]} 31. g3 {[%clk 0:01:40.9]} 31... b5 {[%clk 0:00:43.1]} 32. Bg2 {[%clk
0:01:40.9]} 32... Red8 {[%clk 0:00:36.7]} 33. Rxd8+ {[%clk 0:01:38.3]} 33...
Rxd8 {[%clk 0:00:37.6]} 34. Bxe4 {[%clk 0:01:39.2]} 34... Bxe4 {[%clk
0:00:33.9]} 35. Qxe4 {[%clk 0:01:40.1]} 35... Ne7 {[%clk 0:00:30.7]} 36. f5
{[%clk 0:01:35.7]} 36... Rd2 {[%clk 0:00:20.7]} 37. f6 {[%clk 0:01:32.7]} 37...
Ng6 {[%clk 0:00:20.1]} 38. e6 {[%clk 0:01:29.6]} 38... Rd8 {[%clk 0:00:09.9]}
39. fxg7 {[%clk 0:01:16.7]} 39... Re8 {[%clk 0:00:06.2]} 40. exf7+ {[%clk
0:01:15.7]} 1-0

[Event "*** Titled Tuesday Blitz"]
[Site "Chess.com"]
[Date "2020.11.03"]
[Round "4"]
[White "enestnrvrd"]
[Black "kot60"]
[Result "1-0"]
[WhiteElo "2615"]
[BlackElo "2392"]
[TimeControl "180+1"]
[EndTime "10:41:15 PST"]
[Termination "enestnrvrd won by resignation"]

1. d4 {[%clk 0:03:00.9]} 1... Nf6 {[%clk 0:02:59.4]} 2. Nf3 {[%clk 0:02:41.6]}
2... g6 {[%clk 0:02:58.7]} 3. c4 {[%clk 0:02:38.9]} 3... Bg7 {[%clk 0:02:58.4]}
4. g3 {[%clk 0:02:39.3]} 4... O-O {[%clk 0:02:57.4]} 5. Bg2 {[%clk 0:02:38.5]}
5... d6 {[%clk 0:02:56]} 6. O-O {[%clk 0:02:38.1]} 6... Na6 {[%clk 0:02:55.2]}
7. Nc3 {[%clk 0:02:37.8]} 7... c5 {[%clk 0:02:55.2]} 8. dxc5 {[%clk 0:02:36]}
8... Nxc5 {[%clk 0:02:54.7]} 9. Nd4 {[%clk 0:02:36.5]} 9... a6 {[%clk 0:02:53]}
10. Rb1 {[%clk 0:02:28.5]} 10... Rb8 {[%clk 0:02:49.3]} 11. h3 {[%clk
0:02:23.4]} 11... Bd7 {[%clk 0:02:46]} 12. a4 {[%clk 0:02:13.5]} 12... Qc8
{[%clk 0:02:40.9]} 13. Kh2 {[%clk 0:02:09.3]} 13... Ne6 {[%clk 0:02:39.6]} 14.
Nxe6 {[%clk 0:02:05.5]} 14... Bxe6 {[%clk 0:02:37.7]} 15. b3 {[%clk 0:02:04.4]}
15... Ng4+ {[%clk 0:02:32.7]} 16. hxg4 {[%clk 0:02:03.2]} 16... Bxc3 {[%clk
0:02:33.2]} 17. g5 {[%clk 0:02:03.3]} 17... Bg7 {[%clk 0:02:28.8]} 18. Be3
{[%clk 0:02:00.9]} 18... b5 {[%clk 0:02:21.6]} 19. cxb5 {[%clk 0:01:59]} 19...
axb5 {[%clk 0:02:21]} 20. a5 {[%clk 0:01:59.9]} 20... b4 {[%clk 0:02:13.2]} 21.
Bb6 {[%clk 0:01:56.7]} 21... Qa6 {[%clk 0:02:03.1]} 22. Qd3 {[%clk 0:01:53.9]}
22... Qxd3 {[%clk 0:01:57]} 23. exd3 {[%clk 0:01:52.4]} 23... Bc8 {[%clk
0:01:55.8]} 24. Rbc1 {[%clk 0:01:28.9]} 24... Ba6 {[%clk 0:01:52]} 25. Rfe1
{[%clk 0:01:20.5]} 25... e6 {[%clk 0:01:43]} 26. d4 {[%clk 0:01:15.9]} 26...
Rfc8 {[%clk 0:01:35.3]} 27. Bc7 {[%clk 0:00:53.6]} 27... Rb5 {[%clk 0:01:31]}
28. Bf1 {[%clk 0:00:53.1]} 28... Bxd4 {[%clk 0:01:08]} 29. Bxb5 {[%clk
0:00:49.7]} 29... Bxb5 {[%clk 0:01:08.1]} 30. Bb6 {[%clk 0:00:48.9]} 30... Bc3
{[%clk 0:01:06.2]} 31. Re3 {[%clk 0:00:37.1]} 31... d5 {[%clk 0:01:05.7]} 32.
Bd4 {[%clk 0:00:35.5]} 32... Ra8 {[%clk 0:00:59.6]} 33. Bxc3 {[%clk 0:00:30.3]}
33... bxc3 {[%clk 0:00:59.6]} 34. Rexc3 {[%clk 0:00:31.2]} 34... Kg7 {[%clk
0:00:55.2]} 35. b4 {[%clk 0:00:30.4]} 35... Bc4 {[%clk 0:00:53.1]} 36. Rxc4
{[%clk 0:00:30.1]} 36... dxc4 {[%clk 0:00:53]} 37. Rxc4 {[%clk 0:00:31]} 37...
h6 {[%clk 0:00:51.6]} 38. gxh6+ {[%clk 0:00:30]} 38... Kxh6 {[%clk 0:00:51.9]}
39. Kg2 {[%clk 0:00:30.6]} 39... Kg5 {[%clk 0:00:51.7]} 40. f4+ {[%clk
0:00:29.8]} 40... Kf6 {[%clk 0:00:49.6]} 41. Kf3 {[%clk 0:00:30.3]} 41... Ke7
{[%clk 0:00:49.7]} 42. Rc7+ {[%clk 0:00:30.2]} 42... Ke8 {[%clk 0:00:48]} 43.
Rb7 {[%clk 0:00:30]} 43... Rd8 {[%clk 0:00:43.5]} 44. a6 {[%clk 0:00:29.3]} 1-0

[Event "*** Titled Tuesday Blitz"]
[Site "Chess.com"]
[Date "2020.11.03"]
[Round "4"]
[White "Kaslask"]
[Black "IMDT02"]
[Result "1-0"]
[WhiteElo "2303"]
[BlackElo "2522"]
[TimeControl "180+1"]
[EndTime "10:41:15 PST"]
[Termination "Kaslask won by resignation"]

1. d4 {[%clk 0:03:00.9]} 1... Nf6 {[%clk 0:02:59.9]} 2. c4 {[%clk 0:03:00.2]}
2... e6 {[%clk 0:03:00]} 3. Nc3 {[%clk 0:02:59.7]} 3... Bb4 {[%clk 0:03:00.1]}
4. e3 {[%clk 0:02:59.6]} 4... O-O {[%clk 0:03:00.2]} 5. Bd3 {[%clk 0:02:58.8]}
5... d5 {[%clk 0:03:00.4]} 6. a3 {[%clk 0:02:58.2]} 6... Bxc3+ {[%clk
0:02:59.3]} 7. bxc3 {[%clk 0:02:57.9]} 7... c5 {[%clk 0:02:59.9]} 8. Ne2 {[%clk
0:02:57.3]} 8... dxc4 {[%clk 0:02:55.1]} 9. Bxc4 {[%clk 0:02:56.5]} 9... Qc7
{[%clk 0:02:55.7]} 10. O-O {[%clk 0:02:55.7]} 10... cxd4 {[%clk 0:02:54.3]} 11.
Qxd4 {[%clk 0:02:52.2]} 11... e5 {[%clk 0:02:49.1]} 12. Qh4 {[%clk 0:02:51.2]}
12... Nc6 {[%clk 0:02:46.1]} 13. Ba2 {[%clk 0:02:42]} 13... Bf5 {[%clk
0:02:41.6]} 14. Ng3 {[%clk 0:02:40.5]} 14... Bg6 {[%clk 0:02:36.8]} 15. e4
{[%clk 0:02:39.2]} 15... Rac8 {[%clk 0:02:28.1]} 16. Bg5 {[%clk 0:02:38.4]}
16... Nd7 {[%clk 0:02:26.6]} 17. Rad1 {[%clk 0:02:23.4]} 17... Nb6 {[%clk
0:02:26.2]} 18. Be3 {[%clk 0:02:11.6]} 18... Kh8 {[%clk 0:02:22.4]} 19. Nf5
{[%clk 0:02:09.4]} 19... f6 {[%clk 0:02:18.3]} 20. Qg4 {[%clk 0:02:04.6]} 20...
Rcd8 {[%clk 0:02:13.1]} 21. h4 {[%clk 0:02:04.1]} 21... Bxf5 {[%clk 0:02:05.4]}
22. exf5 {[%clk 0:01:56.6]} 22... Na5 {[%clk 0:02:05.1]} 23. h5 {[%clk
0:01:53.9]} 23... Nac4 {[%clk 0:02:05.3]} 24. Bc1 {[%clk 0:01:47.7]} 24... Qc6
{[%clk 0:01:36.7]} 25. h6 {[%clk 0:01:42.7]} 25... Qc7 {[%clk 0:01:11.5]} 26.
Bxc4 {[%clk 0:01:41]} 26... Nxc4 {[%clk 0:00:56]} 27. hxg7+ {[%clk 0:01:40.8]}
27... Qxg7 {[%clk 0:00:56.5]} 28. Qxc4 {[%clk 0:01:40.7]} 28... Rg8 {[%clk
0:00:55.6]} 29. Qe4 {[%clk 0:01:40.5]} 29... Rc8 {[%clk 0:00:55]} 30. Rd3 {[%clk
0:01:38]} 30... Rc4 {[%clk 0:00:54.7]} 31. Qd5 {[%clk 0:01:21]} 31... Rc5 {[%clk
0:00:50.1]} 32. Qf3 {[%clk 0:01:19.1]} 32... e4 {[%clk 0:00:50.4]} 33. Qxe4
{[%clk 0:01:18.6]} 33... Re5 {[%clk 0:00:51]} 34. Qf3 {[%clk 0:01:18.1]} 34...
Rxf5 {[%clk 0:00:51.3]} 35. Qh3 {[%clk 0:01:09.9]} 35... Rh5 {[%clk 0:00:51.1]}
36. Qg3 {[%clk 0:01:05.6]} 36... Qf7 {[%clk 0:00:39.6]} 37. Qf3 {[%clk
0:01:03.4]} 37... Qg6 {[%clk 0:00:32.4]} 38. Rd5 {[%clk 0:00:52.9]} 38... Rh4
{[%clk 0:00:26.6]} 39. Rfd1 {[%clk 0:00:48.3]} 39... Rg4 {[%clk 0:00:21.4]} 40.
g3 {[%clk 0:00:46.2]} 40... Qh5 {[%clk 0:00:21.5]} 41. Rxh5 {[%clk 0:00:44]} 1-0